bitfinex-derivatives/quotes_SOLF0:USTF0_20251115
["timestamp","ask_amount","ask_price","bid_price","bid_amount"]
[1763196939628,4.67996973,140.77,140.72,3.19054597]
[1763196940332,0.04701728,140.76,140.72,9.84046896]
[1763196940532,0.04701728,140.76,140.73,3.14]
[1763196942232,0.04701728,140.76,140.75,3.14]
[1763196943127,74.62,140.82,140.76,3.14]
[1763196943331,77.7,140.82,140.77,3.14]
[1763196943534,3.08,140.81,140.75,9.76045209]
[1763196944028,0.04611018,140.79,140.75,6.62045209]
[1763196944334,0.04611018,140.79,140.77,3.18666704]
[1763196945738,0.04611018,140.79,140.77,9.80711913]
[1763196945928,0.04611018,140.79,140.78,3.14]
[1763196947328,3.12611018,140.79,140.77,6.66711913]
[1763196947527,3.12611018,140.79,140.77,0.04666704]
[1763196947727,3.12611018,140.79,140.77,3.18666704]
[1763196947728,0.04611018,140.79,140.77,3.18666704]
[1763196948136,1.64607991,140.79,140.77,3.18666704]
[1763196948637,4.72607991,140.79,140.77,0.04666704]
[1763196948934,1.64607991,140.79,140.77,0.04666704]
[1763196949239,1.64607991,140.79,140.77,3.18666704]
[1763196951040,0.04611018,140.79,140.77,3.18666704]
[1763196951541,79.29996973,140.82,140.77,3.18666704]
[1763196952140,3.08,140.81,140.77,3.18666704]
[1763196952640,0.05425501,140.8,140.77,3.18666704]
[1763196953246,0.05425501,140.8,140.77,9.80151293]
[1763196953445,0.05425501,140.8,140.78,3.14]
[1763196955038,0.05425501,140.8,140.77,6.66151293]
[1763196955039,0.05425501,140.8,140.79,3.14]
[1763196957343,4.5,140.87,140.79,3.14]
[1763196957539,5.57800328,140.86,140.79,3.14]
[1763196957738,1.23597102,140.92,140.81,6.61519307]
[1763196957739,2.49800328,140.88,140.81,6.61519307]
[1763196957941,2.49800328,140.88,140.82,3.14]
[1763196958135,3.08,140.89,140.82,3.14]
[1763196958533,0.05274183,140.87,140.85,3.14]
[1763196960140,3.13274183,140.87,140.84,0.04598636]
[1763196960535,5.63074511,140.87,140.84,0.04598636]
[1763196960742,3.08,140.86,140.84,0.04598636]
[1763196961137,2.55074511,140.87,140.84,0.04598636]
[1763196961138,5.57800328,140.85,140.84,0.04598636]
[1763196961542,3.08,140.84,140.78,3.14]
[1763196962342,5.57800328,140.87,140.79,3.14]
[1763196962547,5.57800328,140.87,140.83,3.14]
[1763196962548,0.05316733,140.84,140.83,3.14]
[1763196962741,0.05316733,140.84,140.82,3.19358764]
[1763196966650,2.49800328,140.89,140.82,3.19358764]
[1763196966951,2.49800328,140.89,140.82,3.14]
[1763196967653,0.05012041,140.87,140.85,3.19]
[1763196972243,3.36012041,140.87,140.84,3.23964802]
[1763196972451,3.36012041,140.87,140.84,0.04964802]
[1763196972649,5.85812369,140.87,140.84,0.04964802]
[1763196972950,3.31,140.86,140.84,0.04964802]
[1763196975753,5.80800328,140.85,140.78,3.21]
[1763196975953,3.31,140.79,140.7,9.82519307]
[1763196976154,2.49800328,140.82,140.7,3.21]
[1763196976155,3.31,140.74,140.7,3.21]
[1763196976650,3.31,140.72,140.71,0.04994772]
[1763196976852,3.31,140.72,140.66,3.21]
[1763196977053,5.80800328,140.71,140.7,0.05378375]
[1763196980056,3.35810876,140.73,140.7,0.05378375]
[1763196981645,4.73,140.72,140.62,3.21]
[1763196981847,3.31,140.71,140.62,3.21]
[1763196982654,0.04644662,140.68,140.65,0.04808605]
[1763196983357,0.04644662,140.68,140.65,3.25808605]
[1763196985162,3.35644662,140.68,140.65,0.04808605]
[1763196985764,0.04644662,140.68,140.65,3.25808605]
[1763196986868,0.04644662,140.68,140.65,0.04808605]
[1763196986869,3.35644662,140.68,140.65,0.04808605]
[1763196989465,3.35644662,140.68,140.59,3.21]
[1763196989660,3.31,140.67,140.59,3.21]
[1763196990463,0.04539805,140.64,140.62,0.04783027]
[1763196990670,3.35539805,140.64,140.62,0.04783027]
[1763196992365,0.04539805,140.64,140.62,3.25783027]
[1763196993173,3.35539805,140.64,140.62,0.04783027]
[1763196993371,0.04539805,140.64,140.62,0.04783027]
[1763196993772,3.33539805,140.64,140.62,0.04783027]
[1763196996975,0.04539805,140.64,140.62,3.20783027]
[1763196997769,0.04539805,140.64,140.62,0.04783027]
[1763196998075,3.33539805,140.64,140.62,0.04783027]
[1763196998275,0.04539805,140.64,140.62,0.04783027]
[1763196998676,0.04539805,140.64,140.62,3.20783027]
[1763197006179,3.29,140.71,140.62,3.20783027]
[1763197006387,2.50393597,140.76,140.64,3.16]
[1763197006388,3.29,140.69,140.64,3.16]
[1763197007285,3.33886628,140.68,140.65,0.0495345]
[1763197007779,3.33886628,140.68,140.65,3.2095345]
[1763197008179,0.04886628,140.68,140.65,3.2095345]
[1763197011884,3.29,140.74,140.66,3.16]
[1763197013289,5.79393597,140.74,140.66,3.16]
[1763197013893,0.04505954,140.71,140.7,3.16]
[1763197015688,3.33505954,140.71,140.69,0.05215214]
[1763197018283,3.29,140.7,140.69,0.05215214]
[1763197018488,3.29,140.7,140.63,9.77519307]
[1763197018489,3.29,140.7,140.63,3.16]
[1763197018690,1.60089877,140.69,140.63,3.16]
[1763197018990,4.89089877,140.69,140.63,3.16]
[1763197019293,4.89089877,140.69,140.63,9.77519307]
[1763197020292,0.05202457,140.67,140.65,3.21127208]
[1763197020488,3.29,140.68,140.65,0.05127208]
[1763197020692,1.60089877,140.67,140.65,0.05127208]
[1763197020894,3.29,140.66,140.65,0.05127208]
[1763197021089,1.60089877,140.67,140.65,0.05127208]
[1763197021293,4.89089877,140.68,140.65,0.05127208]
[1763197021590,4.89089877,140.68,140.65,3.20536601]
[1763197021591,4.94113271,140.68,140.65,3.20536601]
[1763197021787,1.65113271,140.68,140.65,3.20536601]
[1763197023495,0.05023394,140.68,140.65,3.20536601]
[1763197023693,1.60089877,140.72,140.67,6.61519307]
[1763197023988,1.60089877,140.72,140.68,3.37]
[1763197024186,1.60089877,140.72,140.69,3.37]
[1763197024994,0.05040462,140.72,140.69,10.03871496]
[1763197025189,0.05040462,140.72,140.7,9.98519307]
[1763197025390,1.60089877,140.76,140.72,3.37]
[1763197026086,1.60089877,140.77,140.72,3.37]
[1763197026292,0.02780266,140.76,140.73,3.41953306]
[1763197026490,0.02780266,140.76,140.73,3.42167301]
[1763197026790,0.02780266,140.76,140.74,3.37]
[1763197026990,1.60089877,140.8,140.74,3.37]
[1763197027189,1.60089877,140.8,140.75,3.37]
[1763197027690,4.73089877,140.8,140.75,3.37]
[1763197028191,1.60089877,140.8,140.76,3.41494601]
[1763197028395,1.60089877,140.82,140.76,3.41494601]
[1763197030986,3.13,140.83,140.76,3.41494601]
[1763197033486,3.88720473,140.84,140.76,3.41494601]
[1763197033686,7.14720473,140.86,140.76,3.41494601]
[1763197033892,3.26,140.85,140.8,0.04913641]
[1763197034393,3.26,140.85,140.8,3.20913641]
[1763197034696,3.26,140.85,140.8,0.04913641]
[1763197035494,3.26,140.85,140.8,3.20913641]
[1763197040601,74.62,140.87,140.8,3.20913641]
[1763197040801,3.26,140.89,140.8,3.20913641]
[1763197041000,3.26,140.89,140.83,3.21412969]
[1763197045003,77.8,140.92,140.83,3.21412969]
[1763197045202,3.26,140.9,140.86,0.05398219]
[1763197050805,1.59797024,140.87,140.86,0.05398219]
[1763197051814,3.26,140.9,140.86,0.05398219]
[1763197052115,1.59797024,140.87,140.86,0.05398219]
[1763197053717,4.85797024,140.87,140.86,0.05398219]
[1763197055010,3.23,140.86,140.81,3.39]
[1763197055216,4.82797024,140.83,140.78,3.39]
[1763197055518,3.23,140.82,140.78,3.39]
[1763197055911,0.04544876,140.81,140.79,0.05038805]
[1763197056913,3.27544876,140.81,140.79,0.05038805]
[1763197058020,0.04544876,140.81,140.79,3.44038805]
[1763197060217,3.27544876,140.81,140.79,0.05038805]
[1763197060415,0.04544876,140.81,140.79,0.05038805]
[1763197060622,0.04544876,140.81,140.79,3.44038805]
[1763197064631,3.27544876,140.81,140.79,0.05038805]
[1763197065031,0.04544876,140.81,140.79,3.44038805]
[1763197068235,1.59797024,140.83,140.79,3.44038805]
[1763197068533,4.82797024,140.83,140.79,3.44038805]
[1763197070329,4.82797024,140.83,140.8,3.39]
[1763197071038,1.59797024,140.83,140.8,3.39]
[1763197071634,4.82797024,140.83,140.8,3.39]
[1763197072138,1.59797024,140.83,140.8,3.39]
[1763197072341,4.82797024,140.85,140.81,3.39]
[1763197073140,4.82797024,140.89,140.83,10.00519307]
[1763197073341,3.23,140.88,140.85,0.04499406]
[1763197074238,3.23,140.86,140.85,0.04499406]
[1763197078144,2.49723607,140.88,140.85,0.04499406]
[1763197079045,78.27285601,140.94,140.85,0.04499406]
[1763197079244,74.54,140.94,140.88,0.04934047]
[1763197079442,2.49723607,140.89,140.88,0.04934047]
[1763197080146,2.49723607,140.89,140.81,8.85151905]
[1763197080147,0.65,140.86,140.81,6.61519307]
[1763197080347,0.65,140.86,140.81,10.00519307]
[1763197080950,0.65,140.84,140.81,6.61519307]
[1763197081146,0.65,140.84,140.82,0.0535236]
[1763197082146,0.04676744,140.85,140.82,3.4435236]
[1763197083246,0.04676744,140.85,140.83,3.39]
[1763197083442,0.04676744,140.85,140.84,3.39]
[1763197083644,0.65,140.88,140.85,3.39]
[1763197084651,0.65,140.88,140.85,0.0501244]
[1763197086154,0.64,140.87,140.85,0.0501244]
[1763197090252,0.59,140.85,140.81,6.62655738]
[1763197090456,0.59,140.85,140.79,6.62655738]
[1763197090653,0.6,140.83,140.78,6.62655738]
[1763197091257,0.64774471,140.82,140.79,0.04832957]
[1763197091657,0.64774471,140.82,140.79,3.39832957]
[1763197091862,0.04774471,140.82,140.8,3.35]
[1763197097274,0.6,140.84,140.8,9.97655738]
[1763197098478,0.6,140.84,140.8,3.35]
[1763197100568,0.6,140.84,140.79,6.67488695]
[1763197101073,0.6,140.84,140.79,0.04832957]
[1763197101681,0.6,140.84,140.79,3.39832957]
[1763197107980,0.6,140.84,140.8,3.35]
[1763197109284,49.8,140.85,140.8,3.35]
[1763197109583,0.6,140.84,140.8,3.35]
[1763197112288,0.6,140.84,140.81,3.35]
[1763197113188,49.2,140.85,140.81,3.35]
[1763197113488,2.49723607,140.87,140.82,3.35]
[1763197113687,2.49723607,140.87,140.84,3.35]
[1763197113688,3.09723607,140.87,140.84,3.35]
[1763197114084,0.6,140.86,140.83,3.12293418]
[1763197114285,2.49723607,140.87,140.83,3.12293418]
[1763197114286,3.09723607,140.87,140.83,3.12293418]
[1763197115691,0.6,140.87,140.83,3.12293418]
[1763197116687,3.09723607,140.89,140.83,3.12293418]
[1763197117088,3.09723607,140.89,140.84,3.07]
[1763197118183,0.6,140.89,140.84,3.07]
[1763197118392,0.6,140.89,140.85,3.07]
[1763197121795,0.6,140.88,140.84,3.07]
[1763197136107,0.6,140.9,140.84,3.07]
[1763197136406,0.6,140.9,140.86,3.11861888]
[1763197139012,0.6,140.89,140.86,3.11861888]
[1763197140208,0.6,140.89,140.86,0.04861888]
[1763197140511,0.6,140.89,140.86,3.11861888]
[1763197140714,2.19775003,140.89,140.86,3.11861888]
[1763197141013,0.6,140.88,140.86,0.04861888]
[1763197141208,0.6,140.86,140.82,3.07]
[1763197141511,76.09775003,140.87,140.82,3.07]
[1763197141512,76.69775003,140.87,140.82,3.07]
[1763197142113,76.69775003,140.87,140.83,0.04882549]
[1763197142306,76.69775003,140.87,140.84,3.07]
[1763197142904,0.6,140.86,140.84,3.07]
[1763197143405,0.04616465,140.88,140.86,3.07]
[1763197147512,0.04616465,140.88,140.87,3.39]
[1763197149626,0.04616465,140.88,140.86,0.05422125]
[1763197149920,0.63616465,140.88,140.86,0.05422125]
[1763197150921,2.23391468,140.88,140.86,0.05422125]
[1763197151119,0.59,140.87,140.83,3.21]
[1763197152024,0.59,140.87,140.82,6.62917428]
[1763197152321,0.59,140.87,140.84,0.04654662]
[1763197152518,0.64467323,140.87,140.84,0.04654662]
[1763197152720,0.64467323,140.87,140.79,6.62917428]
[1763197152721,0.59,140.85,140.79,6.62917428]
[1763197152927,1.59775003,140.86,140.79,3.21]
[1763197152928,0.59,140.83,140.79,3.21]
[1763197153425,2.18775003,140.82,140.79,3.21]
[1763197153614,0.59,140.81,140.79,3.26204967]
[1763197153819,1.64484391,140.82,140.79,3.26204967]
[1763197154221,0.04709388,140.82,140.79,3.26204967]
[1763197157319,0.04709388,140.82,140.79,0.05204967]
[1763197158627,0.04709388,140.82,140.79,3.26204967]
[1763197162622,1.59775003,140.81,140.79,0.05204967]
[1763197165127,0.04709388,140.82,140.79,3.26204967]
[1763197166828,1.59775003,140.81,140.79,0.05204967]
[1763197170227,1.59775003,140.81,140.73,9.83917428]
[1763197170436,1.59775003,140.77,140.74,3.21]
[1763197170629,1.59775003,140.79,140.74,3.21]
[1763197171624,0.05355055,140.78,140.76,3.21]
[1763197173132,1.59775003,140.81,140.76,3.21]
[1763197173534,1.59775003,140.83,140.76,3.21]
[1763197173734,1.59775003,140.83,140.77,3.21]
[1763197174229,0.04891393,140.81,140.8,3.27]
[1763197178740,0.04891393,140.81,140.79,0.04822047]
[1763197179039,0.04891393,140.81,140.79,3.31822047]
[1763197190146,1.59775003,140.8,140.79,0.04822047]
[1763197191048,0.04891393,140.81,140.79,3.31822047]
[1763197193149,1.59775003,140.8,140.79,3.31822047]
[1763197193447,1.59775003,140.8,140.79,0.04822047]
[1763197194448,1.59775003,140.8,140.79,3.31822047]
[1763197197143,1.59775003,140.8,140.79,0.04822047]
[1763197198853,2.54883282,140.81,140.79,0.04822047]
[1763197200150,0.04891393,140.81,140.79,0.04822047]
[1763197200644,2.54898607,140.81,140.79,0.04822047]
[1763197200840,0.04891393,140.81,140.79,3.31822047]
[1763197202451,2.50007214,140.85,140.8,3.27]
[1763197203149,2.50007214,140.81,140.79,6.62917428]
[1763197203353,2.55473836,140.81,140.79,0.0475701]
[1763197204153,2.50007214,140.8,140.79,0.0475701]
[1763197204346,2.50007214,140.8,140.76,6.62917428]
[1763197204544,2.50007214,140.78,140.75,6.62917428]
[1763197204850,2.50007214,140.76,140.74,3.16]
[1763197205147,2.50007214,140.82,140.74,3.16]
[1763197205148,2.50007214,140.78,140.75,3.16]
[1763197205349,0.04608469,140.78,140.75,3.20505798]
[1763197205545,0.04608469,140.78,140.76,3.16]
[1763197206757,0.04608469,140.78,140.77,3.16]
[1763197207055,2.50007214,140.84,140.77,3.16]
[1763197207850,2.50007214,140.84,140.8,3.16]
[1763197208647,2.50007214,140.86,140.8,3.16]
[1763197208858,2.50007214,140.86,140.82,3.21089494]
[1763197209157,76.98007214,140.88,140.82,3.21089494]
[1763197209957,74.48,140.88,140.82,3.21089494]
[1763197210950,76.98007214,140.88,140.82,3.21089494]
[1763197211561,74.48,140.88,140.82,3.21089494]
[1763197217562,76.98007214,140.88,140.82,3.21089494]
[1763197220158,2.50007214,140.84,140.82,0.05089494]
[1763197220355,2.50007214,140.84,140.79,3.27]
[1763197220356,2.50007214,140.84,140.77,9.89917428]
[1763197220558,2.50007214,140.82,140.77,9.89917428]
[1763197220764,2.50007214,140.82,140.78,3.27]
[1763197221362,0.05428163,140.81,140.79,3.32250881]
[1763197222260,0.00428163,140.81,140.79,3.32250881]
[1763197222566,0.05,140.89,140.81,3.27]
[1763197222762,0.05,140.87,140.81,3.27]
[1763197223369,0.05,140.87,140.83,3.32357515]
[1763197225765,0.05,140.85,140.83,0.05357515]
[1763197225960,2.55007214,140.84,140.83,0.05171922]
[1763197226161,0.05,140.83,140.78,3.27]
[1763197226575,2.50007214,140.84,140.78,3.27]
[1763197226764,2.50007214,140.84,140.79,3.27]
[1763197226969,2.55007214,140.84,140.79,3.27]
[1763197227268,0.04634261,140.83,140.81,3.27]
[1763197229975,2.50007214,140.89,140.81,3.27]
[1763197230171,2.50007214,140.89,140.83,3.27]
[1763197231076,2.60007214,140.89,140.86,3.27]
[1763197231271,0.1,140.93,140.86,3.27]
[1763197231576,0.1,140.86,140.82,3.27]
[1763197231777,2.60007214,140.85,140.83,0.04968308]
[1763197231975,2.50007214,140.84,140.83,0.04489011]
[1763197232175,73.41992787,140.84,140.75,6.62999875]
[1763197232474,2.50007214,140.82,140.72,9.89999875]
[1763197232671,2.55007214,140.78,140.73,3.27]
[1763197232872,0.05,140.81,140.73,3.27]
[1763197233170,2.50007214,140.88,140.73,3.27]
[1763197233171,0.05073375,140.78,140.77,3.27]
[1763197233370,0.04498401,140.79,140.77,3.27]
[1763197238980,2.50007214,140.85,140.78,3.29]
[1763197239876,2.60007214,140.85,140.81,3.29]
[1763197240272,0.1,140.84,140.81,3.29]
[1763197240473,0.1,140.84,140.8,3.34071028]
[1763197241084,2.50007214,140.85,140.8,3.34071028]
[1763197241285,2.50007214,140.87,140.8,3.34071028]
[1763197241979,2.50007214,140.89,140.8,3.34071028]
[1763197242287,0.1,140.9,140.84,3.29]
[1763197244281,0.1,140.88,140.84,3.29]
[1763197244585,0.1,140.88,140.85,3.339291]
[1763197244786,0.1,140.88,140.85,0.05091859]
[1763197245686,2.60007214,140.87,140.85,0.05091859]
[1763197245886,0.1,140.9,140.85,0.05091859]
[1763197246088,2.60007214,140.87,140.85,0.05091859]
[1763197246385,0.1,140.86,140.85,0.05091859]
[1763197246785,2.50007214,140.87,140.85,0.05091859]
[1763197246986,2.60007214,140.87,140.85,0.05091859]
[1763197247185,0.1,140.86,140.85,0.05091859]
[1763197247487,2.60007214,140.87,140.85,0.05091859]
[1763197247788,0.1,140.86,140.85,0.05091859]
[1763197248089,2.60007214,140.87,140.85,0.05091859]
[1763197248586,0.1,140.86,140.79,3.29]
[1763197248888,2.50007214,140.88,140.79,3.29]
[1763197248889,2.60007214,140.84,140.79,3.29]
[1763197249591,0.04589196,140.83,140.81,3.29]
[1763197249793,2.50007214,140.84,140.81,3.29]
[1763197250290,2.60007214,140.84,140.81,3.29]
[1763197250491,0.1,140.83,140.8,0.0533533]
[1763197250692,2.50007214,140.84,140.8,3.3433533]
[1763197250890,2.60007214,140.84,140.8,3.3433533]
[1763197252404,0.1,140.83,140.8,3.3433533]
[1763197252697,2.60007214,140.84,140.8,3.3433533]
[1763197254097,0.1,140.83,140.8,0.0533533]
[1763197255497,2.50007214,140.85,140.8,3.3433533]
[1763197255800,2.60007214,140.85,140.8,3.3433533]
[1763197256192,0.1,140.84,140.8,3.3433533]
[1763197259002,2.50007214,140.85,140.8,3.3433533]
[1763197259302,2.60007214,140.85,140.8,3.3433533]
[1763197259699,2.50007214,140.87,140.8,3.3433533]
[1763197260402,0.1,140.86,140.8,3.3433533]
[1763197260999,1.59884165,140.84,140.8,3.3433533]
[1763197262803,1.69884165,140.84,140.8,3.3433533]
[1763197265607,0.09,140.83,140.8,3.3433533]
[1763197265806,1.68884165,140.82,140.8,0.0533533]
[1763197266007,0.09,140.81,140.8,0.0533533]
[1763197266406,1.68884165,140.82,140.8,0.0533533]
[1763197267106,1.68884165,140.82,140.8,3.1333533]
[1763197267107,1.59884165,140.82,140.8,3.1333533]
[1763197268314,1.68884165,140.82,140.8,0.0533533]
[1763197268610,0.09,140.81,140.8,0.0533533]
[1763197270309,0.09,140.81,140.74,3.08]
[1763197270615,6.5138986,140.86,140.74,3.08]
[1763197270616,1.68884165,140.78,140.74,3.08]
[1763197271204,0.05023488,140.77,140.75,0.05352095]
[1763197271411,1.59884165,140.78,140.76,3.38]
[1763197272414,1.6205899,140.78,140.76,3.38]
[1763197274315,1.7205899,140.78,140.75,3.43352095]
[1763197275809,0.1,140.77,140.75,3.43352095]
[1763197276715,0.12174825,140.78,140.75,3.43352095]
[1763197276915,1.59884165,140.77,140.75,3.43352095]
[1763197278922,0.02174825,140.78,140.75,3.43352095]
[1763197279416,1.59884165,140.85,140.78,3.38]
[1763197280315,1.71884165,140.85,140.81,3.38]
[1763197280715,1.59884165,140.83,140.81,3.38]
[1763197280908,0.12,140.82,140.8,0.0486534]
[1763197281107,1.59884165,140.81,140.8,0.0486534]
[1763197281310,1.71884165,140.81,140.8,0.0486534]
[1763197283519,0.12,140.8,140.72,3.38]
[1763197283816,1.71884165,140.78,140.72,3.38]
[1763197284018,1.59884165,140.76,140.72,3.38]
[1763197284217,1.71884165,140.76,140.72,3.38]
[1763197284618,0.12,140.76,140.72,3.38]
[1763197284818,0.0486534,140.75,140.73,3.43223267]
[1763197285018,1.71884165,140.76,140.73,3.43223267]
[1763197285220,1.71884165,140.76,140.73,0.05223267]
[1763197285221,0.12,140.75,140.73,0.05223267]
[1763197285416,1.59884165,140.74,140.73,0.05223267]
[1763197286120,1.59884165,140.76,140.73,3.43223267]
[1763197286319,1.71884165,140.78,140.73,3.43223267]
[1763197286519,0.12,140.77,140.73,3.43223267]
[1763197286716,1.59884165,140.78,140.73,3.43223267]
[1763197288620,1.59884165,140.76,140.73,0.05223267]
[1763197288925,0.12,140.75,140.73,0.05223267]
[1763197289120,1.59884165,140.74,140.73,0.05223267]
[1763197289424,1.71884165,140.74,140.73,0.05223267]
[1763197290024,1.71884165,140.76,140.73,3.43223267]
[1763197290224,0.12,140.75,140.73,0.05223267]
[1763197291724,0.12,140.73,140.67,3.38]
[1763197292120,0.12,140.73,140.63,3.38]
[1763197293023,0.04707358,140.69,140.67,3.43152031]
[1763197294921,0.12,140.73,140.67,3.43152031]
[1763197295323,0.12,140.73,140.67,0.05152031]
[1763197297628,0.12,140.7,140.67,0.05152031]
[1763197297824,0.12,140.7,140.64,3.15]
[1763197298028,4.01183128,140.71,140.67,3.15]
[1763197298227,4.01183128,140.74,140.67,3.15]
[1763197298432,0.12,140.74,140.67,3.15]
[1763197298629,0.12,140.74,140.69,0.04566317]
[1763197299932,0.12,140.74,140.69,3.19566317]
[1763197300633,0.12,140.74,140.69,0.04566317]
[1763197300834,0.12,140.7,140.63,3.15]
[1763197301035,0.12,140.67,140.63,3.15]
[1763197301235,0.12,140.67,140.56,3.15]
[1763197301836,0.04568159,140.63,140.61,3.15]
[1763197307633,0.16568159,140.63,140.6,0.04899284]
[1763197307838,0.12,140.62,140.6,0.04899284]
[1763197308034,0.16568159,140.63,140.6,3.19899284]
[1763197310635,0.12,140.62,140.6,0.04899284]
[1763197310837,1.72425709,140.61,140.6,0.04899284]
[1763197312732,1.60425709,140.61,140.6,3.19899284]
[1763197312930,1.60425709,140.62,140.6,3.19899284]
[1763197313134,1.60425709,140.62,140.6,0.04899284]
[1763197313135,1.72425709,140.62,140.6,0.04899284]
[1763197313340,0.12,140.61,140.57,3.15]
[1763197313541,1.60425709,140.59,140.57,3.15]
[1763197314341,1.64914075,140.59,140.57,3.19537247]
[1763197316343,0.04488366,140.59,140.57,3.19537247]
[1763197325751,0.16488366,140.59,140.57,0.04537247]
[1763197325956,0.04488366,140.59,140.57,3.38537247]
[1763197327963,2.62701729,140.65,140.58,3.34]
[1763197328962,0.04829626,140.63,140.6,3.3932181]
[1763197340267,0.21829626,140.63,140.6,3.3932181]
[1763197340467,0.04829626,140.63,140.6,3.3932181]
[1763197342069,2.50701729,140.68,140.6,3.3932181]
[1763197342270,5.62701729,140.69,140.6,3.34]
[1763197342472,0.17,140.68,140.6,3.34]
[1763197343176,0.17,140.68,140.63,3.14513155]
[1763197343477,2.67701729,140.66,140.63,3.14513155]
[1763197344873,0.17,140.63,140.58,3.1]
[1763197345074,2.50701729,140.61,140.58,3.1]
[1763197345776,2.72712902,140.61,140.58,3.15385624]
[1763197347578,2.55712902,140.61,140.58,3.15385624]
[1763197347881,0.05011173,140.61,140.58,3.15385624]
[1763197352181,2.50701729,140.64,140.58,3.15385624]
[1763197352382,2.50701729,140.67,140.58,3.15385624]
[1763197352579,2.50701729,140.67,140.58,3.1]
[1763197352981,0.17,140.68,140.58,3.1]
[1763197353176,0.17,140.68,140.62,0.04576442]
[1763197354685,2.67701729,140.66,140.62,3.19576442]
[1763197355080,0.17,140.66,140.62,3.19576442]
[1763197355384,2.50701729,140.68,140.62,3.19576442]
[1763197355585,54.67,140.69,140.62,3.19576442]
[1763197356188,57.17701729,140.69,140.62,3.19576442]
[1763197357279,54.67,140.69,140.62,3.19576442]
[1763197358387,54.5,140.69,140.63,3.15]
[1763197358584,54.5,140.69,140.64,3.15]
[1763197358784,54.5,140.69,140.66,3.15]
[1763197358983,2.67701729,140.67,140.65,0.04830842]
[1763197359185,0.17,140.67,140.61,6.64336153]
[1763197359489,0.17,140.65,140.6,3.15]
[1763197360289,0.21996342,140.64,140.61,0.05210149]
[1763197360989,0.21996342,140.64,140.61,3.20210149]
[1763197361786,0.04996342,140.64,140.61,3.20210149]
[1763197364496,0.21996342,140.64,140.61,3.20210149]
[1763197367392,0.04996342,140.64,140.61,3.20210149]
[1763197368292,0.17,140.66,140.62,3.15]
[1763197369198,0.17,140.66,140.63,0.04908885]
[1763197369395,2.67701729,140.66,140.63,0.04908885]
[1763197370293,2.67701729,140.66,140.63,3.19908885]
[1763197374302,0.17,140.65,140.63,0.04908885]
[1763197374499,0.17,140.65,140.63,3.19908885]
[1763197374696,2.67701729,140.66,140.63,3.19908885]
[1763197377495,0.17,140.65,140.63,3.19908885]
[1763197377704,2.67701729,140.66,140.63,3.19908885]
[1763197379911,2.50701729,140.66,140.63,3.19908885]
[1763197380206,2.50701729,140.68,140.63,3.19908885]
[1763197380410,2.50701729,140.68,140.65,3.15]
[1763197380610,2.50701729,140.68,140.65,3.19779542]
[1763197381812,2.50701729,140.69,140.65,3.19779542]
[1763197384314,2.50701729,140.67,140.65,3.19779542]
[1763197384509,2.66701729,140.67,140.65,0.04779542]
[1763197384910,1.60342978,140.66,140.65,0.04779542]
[1763197385409,1.60342978,140.66,140.65,3.20779542]
[1763197385810,1.60342978,140.66,140.51,21.33]
[1763197385811,0.16,140.65,140.62,3.16]
[1763197386115,1.60342978,140.63,140.62,3.16]
[1763197388210,1.76342978,140.63,140.61,0.05003554]
[1763197388413,1.60342978,140.63,140.61,3.21003554]
[1763197390221,0.16,140.62,140.61,0.05003554]
[1763197390414,1.60342978,140.63,140.61,0.05003554]
[1763197390619,1.76342978,140.63,140.61,0.05003554]
[1763197390816,0.16,140.62,140.61,0.05003554]
[1763197391221,0.16,140.62,140.58,3.16]
[1763197391425,1.60342978,140.59,140.58,3.16]
[1763197391920,0.16,140.58,140.52,6.64764425]
[1763197392121,6.50635815,140.63,140.52,3.28]
[1763197392122,1.60342978,140.53,140.52,3.28]
[1763197392527,0.05166357,140.54,140.52,3.28]
[1763197392727,0.05166357,140.54,140.51,0.05022566]
[1763197392728,1.60342978,140.53,140.51,0.05022566]
[1763197392927,1.60342978,140.53,140.51,3.33022566]
[1763197393124,0.05166357,140.54,140.51,3.33022566]